[Event "11th LCC Super Blitz 2019"]
[Site "London"]
[Date "2019.12.08"]
[Round "5.10"]
[White "Bird, Joel"]
[Black "Saidmurodov, Shahjahon"]
[Result "0-1"]
[ECO "C78"]
[WhiteElo "2009"]
[BlackElo "1812"]
[Annotator "NA"]
[PlyCount "52"]
[EventDate "2019.12.08"]
[EventType "swiss"]
[EventCountry "ENG"]
[SourceTitle "playchess.com"]
[Source "ChessBase"]
[SourceQuality "1"]
[TimeControl "180+2"]

1. e4 {[%emt 0:00:00]} e5 {[%emt 0:00:00]} 2. Nf3 {[%emt 0:00:00]} Nc6 {[%emt 0:00:00]} 3. Bb5 {[%emt 0:00:01]} a6 {[%emt 0:00:03]} 4. Ba4 Bc5 {[%emt 0:00:01]} 5. c3 {[%emt 0:00:02]} Nf6 {[%emt 0:00:04]} 6. O-O {[%emt 0:00:01]} d6 {[%emt 0:00:01]} 7. d4 {[%emt 0:00:03]} b5 {[%emt 0:00:28]} 8. dxc5 {[%emt 0:00:08]} bxa4 {[%emt 0:00:01]} 9. Qxa4 {[%emt 0:00:19]} Bd7 {[%emt 0:00:01]} 10. cxd6 {[%emt 0:00:06]} cxd6 {[%emt 0:00:02]} 11. Qc2 {[%emt 0:00:18]} O-O {[%emt 0:00:14]} 12. Nbd2 {[%emt 0:00:02]} Ne7 {[%emt 0:00:08]} 13. Re1 {[%emt 0:00:05]} Ng6 {[%emt 0:00:01]} 14. Nc4 {[%emt 0:00:04]} Qc7 {[%emt 0:00:08]} 15. Qd3 {[%emt 0:00:11]} Bb5 {[%emt 0:00:04]} 16. Qxd6 {[%emt 0:00:04]} Qxc4 {[%emt 0:00:02]} 17. Bg5 {[%emt 0:00:39]} Nxe4 {[%emt 0:00:05]} 18. Qa3 {[%emt 0:00:28]} Nxg5 {[%emt 0:00:08]} 19. Nxg5 {[%emt 0:00:01]} Qg4 {[%emt 0:00:04]} 20. Ne4 {[%emt 0:00:21]} Nf4 {[%emt 0:00:25]} 21. Ng3 {[%emt 0:00:02]} Nxg2 {[%emt 0:00:14]} 22. Kxg2 {[%emt 0:00:10]} Bc6+ {[%emt 0:00:01]} 23. Kf1 {[%emt 0:00:20]} Rad8 {[%emt 0:00:20]} 24. Qc5 {[%emt 0:00:03]} Qf3 {[%emt 0:00:13]} 25. Qe3 {[%emt 0:00:07]} Qg2+ {[%emt 0:00:04]} 26. Ke2 {[%emt 0:00:01]} Bb5+ {[%emt 0:00:10]} 0-1

[Event "11th LCC Super Blitz 2019"]
[Site "London"]
[Date "2019.12.08"]
[Round "5.10"]
[White "Ozturan, Cem"]
[Black "Vaidya, Raghav"]
[Result "1-0"]
[ECO "E17"]
[WhiteElo "1853"]
[BlackElo "1467"]
[Annotator "NA"]
[PlyCount "71"]
[EventDate "2019.12.08"]
[EventType "swiss"]
[EventCountry "ENG"]
[SourceTitle "playchess.com"]
[Source "ChessBase"]
[SourceQuality "1"]
[TimeControl "180+2"]

1. d4 {[%emt 0:00:00]} Nf6 {[%emt 0:00:00]} 2. Nf3 {[%emt 0:00:00]} b6 {[%emt 0:00:00]} 3. g3 {[%emt 0:00:01]} Bb7 {[%emt 0:00:00]} 4. Bg2 {[%emt 0:00:01]} e6 {[%emt 0:00:02]} 5. O-O {[%emt 0:00:02]} Be7 {[%emt 0:00:01]} 6. c4 {[%emt 0:00:01]} d6 {[%emt 0:00:01]} 7. Nc3 {[%emt 0:00:03]} Nbd7 {[%emt 0:00:01]} 8. b3 {[%emt 0:00:02]} O-O {[%emt 0:00:02]} 9. Bb2 {[%emt 0:00:01]} Re8 {[%emt 0:00:02]} 10. Re1 {[%emt 0:00:02]} Bf8 {[%emt 0:00:01]} 11. Qc2 {[%emt 0:00:06]} e5 {[%emt 0:00:01]} 12. d5 {[%emt 0:00:18]} c5 {[%emt 0:00:14]} 13. dxc6 {[%emt 0:00:18]} Bxc6 {[%emt 0:00:01]} 14. Rad1 {[%emt 0:00:02]} Bxf3 {[%emt 0:00:11]} 15. Bxf3 {[%emt 0:00:04]} Rc8 {[%emt 0:00:01]} 16. Nb5 {[%emt 0:00:15]} Nc5 {[%emt 0:00:03]} 17. Nxa7 {[%emt 0:00:09]} Rc7 {[%emt 0:00:06]} 18. Nb5 {[%emt 0:00:03]} Rce7 {[%emt 0:00:04]} 19. Nxd6 {[%emt 0:00:09]} Rd7 {[%emt 0:00:13]} 20. Nxe8 {[%emt 0:00:04]} Rxd1 {[%emt 0:00:03]} 21. Nxf6+ {[%emt 0:00:03]} Qxf6 {[%emt 0:00:02]} 22. Rxd1 {[%emt 0:00:06]} Qe6 {[%emt 0:00:03]} 23. Bd5 {[%emt 0:00:07]} Qf6 {[%emt 0:00:02]} 24. b4 {[%emt 0:00:38]} Ne6 {[%emt 0:00:05]} 25. Bxe6 {[%emt 0:00:09]} Qxe6 {[%emt 0:00:02]} 26. Qe4 {[%emt 0:00:03]} Bxb4 {[%emt 0:00:05]} 27. Rd8+ {[%emt 0:00:08]} Bf8 {[%emt 0:00:01]} 28. Ba3 {[%emt 0:00:08]} g6 {[%emt 0:00:06]} 29. Bxf8 {[%emt 0:00:07]} f5 {[%emt 0:00:02]} 30. Bh6+ {[%emt 0:00:03]} Kf7 {[%emt 0:00:01]} 31. Rf8+ {[%emt 0:00:10]} Ke7 {[%emt 0:00:02]} 32. Qb7+ {[%emt 0:00:02]} Qd7 {[%emt 0:00:02]} 33. Rf7+ {[%emt 0:00:02]} Kxf7 {[%emt 0:00:03]} 34. Qxd7+ {[%emt 0:00:01]} Kf6 {[%emt 0:00:03]} 35. h4 {[%emt 0:00:06]} b5 {[%emt 0:00:01]} 36. Bf8 {[%emt 0:00:06]} 1-0

[Event "11th LCC Super Blitz 2019"]
[Site "London"]
[Date "2019.12.08"]
[Round "5.10"]
[White "John, Joshua"]
[Black "Mohnblatt, Nicolas"]
[Result "1-0"]
[ECO "A52"]
[WhiteElo "1694"]
[BlackElo "1689"]
[Annotator "NA"]
[PlyCount "47"]
[EventDate "2019.12.08"]
[EventType "swiss"]
[EventCountry "ENG"]
[SourceTitle "playchess.com"]
[Source "ChessBase"]
[SourceQuality "1"]
[TimeControl "180+2"]

1. d4 {[%emt 0:00:00]} Nf6 {[%emt 0:00:00]} 2. c4 {[%emt 0:00:00]} e5 {[%emt 0:00:00]} 3. dxe5 {[%emt 0:00:02]} Ng4 {[%emt 0:00:01]} 4. Nf3 {[%emt 0:00:01]} Bc5 {[%emt 0:00:01]} 5. e3 {[%emt 0:00:01]} Nc6 {[%emt 0:00:02]} 6. Nc3 {[%emt 0:00:01]} Ngxe5 {[%emt 0:00:02]} 7. Be2 {[%emt 0:00:02]} O-O {[%emt 0:00:04]} 8. O-O {[%emt 0:00:02]} a5 {[%emt 0:00:01]} 9. b3 {[%emt 0:00:05]} Nxf3+ {[%emt 0:00:17]} 10. Bxf3 {[%emt 0:00:01]} Ne5 {[%emt 0:00:02]} 11. Bb2 {[%emt 0:00:02]} Nxf3+ {[%emt 0:00:05]} 12. Qxf3 {[%emt 0:00:02]} f5 {[%emt 0:00:27]} 13. Qd5+ {[%emt 0:00:07]} Kh8 {[%emt 0:00:10]} 14. Qxc5 {[%emt 0:00:02]} Ra6 {[%emt 0:00:09]} 15. Nd5 {[%emt 0:00:02]} Rc6 {[%emt 0:00:23]} 16. Qd4 {[%emt 0:00:02]} Rg6 {[%emt 0:00:12]} 17. Nf4 {[%emt 0:00:03]} Rg5 {[%emt 0:00:17]} 18. h4 {[%emt 0:00:14]} Rg4 {[%emt 0:00:11]} 19. f3 {[%emt 0:00:04]} Rg3 {[%emt 0:00:12]} 20. Nh5 {[%emt 0:00:02]} Rg6 {[%emt 0:00:32]} 21. Nxg7 {[%emt 0:00:04]} Rff6 {[%emt 0:00:27]} 22. Nh5 {[%emt 0:00:08]} Qg8 {[%emt 0:00:01]} 23. Rf2 {[%emt 0:00:21]} d6 {[%emt 0:00:07]} 24. Nxf6 {[%emt 0:00:03]} 1-0

[Event "11th LCC Super Blitz 2019"]
[Site "London"]
[Date "2019.12.08"]
[Round "5.11"]
[White "Dhemrait, Jagdeep"]
[Black "Patel, Zain"]
[Result "1-0"]
[ECO "B23"]
[WhiteElo "1834"]
[BlackElo "1253"]
[Annotator "NA"]
[PlyCount "28"]
[EventDate "2019.12.08"]
[EventType "swiss"]
[EventCountry "ENG"]
[SourceTitle "playchess.com"]
[Source "ChessBase"]
[SourceQuality "1"]
[TimeControl "180+2"]

1. e4 {[%emt 0:00:00]} c5 {[%emt 0:00:00]} 2. Nc3 {[%emt 0:00:01]} d6 {[%emt 0:00:00]} 3. f4 {[%emt 0:00:01]} Nf6 {[%emt 0:00:04]} 4. Nf3 {[%emt 0:00:01]} e6 {[%emt 0:00:02]} 5. Bb5+ {[%emt 0:00:02]} Bd7 {[%emt 0:00:01]} 6. Bxd7+ {[%emt 0:00:01]} Nbxd7 {[%emt 0:00:01]} 7. O-O {[%emt 0:00:02]} Be7 {[%emt 0:00:01]} 8. d3 {[%emt 0:00:01]} b5 {[%emt 0:00:01]} 9. a3 {[%emt 0:00:02]} b4 10. axb4 {[%emt 0:00:01]} cxb4 {[%emt 0:00:03]} 11. Ne2 {[%emt 0:00:02]} O-O {[%emt 0:00:02]} 12. Qe1 {[%emt 0:00:01]} Rc8 {[%emt 0:00:01]} 13. c4 {[%emt 0:00:04]} bxc3 {[%emt 0:00:01]} 14. bxc3 {[%emt 0:00:01]} Qb6+ {[%emt 0:00:07]} 1-0

[Event "11th LCC Super Blitz 2019"]
[Site "London"]
[Date "2019.12.08"]
[Round "5.11"]
[White "Tombolis, Christopher"]
[Black "Zulfic, Fedja"]
[Result "0-1"]
[ECO "E60"]
[WhiteElo "1655"]
[BlackElo "2032"]
[Annotator "NA"]
[PlyCount "68"]
[EventDate "2019.12.08"]
[EventType "swiss"]
[EventCountry "ENG"]
[SourceTitle "playchess.com"]
[Source "ChessBase"]
[SourceQuality "1"]
[TimeControl "180+2"]

1. d4 {[%emt 0:00:00]} Nf6 {[%emt 0:00:00]} 2. c4 {[%emt 0:00:02]} c5 {[%emt 0:00:02]} 3. d5 {[%emt 0:00:02]} b5 {[%emt 0:00:02]} 4. cxb5 {[%emt 0:00:01]} a6 5. bxa6 {[%emt 0:00:03]} g6 {[%emt 0:00:04]} 6. Nc3 {[%emt 0:00:02]} Bg7 {[%emt 0:00:02]} 7. Nf3 {[%emt 0:00:02]} O-O {[%emt 0:00:02]} 8. g3 {[%emt 0:00:02]} d6 {[%emt 0:00:06]} 9. Bg2 {[%emt 0:00:07]} Nxa6 {[%emt 0:00:02]} 10. O-O {[%emt 0:00:02]} Bb7 {[%emt 0:00:02]} 11. Nd2 {[%emt 0:00:09]} Nb4 {[%emt 0:00:19]} 12. Nc4 {[%emt 0:00:05]} Ra6 {[%emt 0:00:20]} 13. Bd2 {[%emt 0:00:18]} Nbxd5 {[%emt 0:00:11]} 14. Nxd5 {[%emt 0:00:14]} Bxd5 {[%emt 0:00:04]} 15. Bxd5 {[%emt 0:00:03]} Nxd5 {[%emt 0:00:02]} 16. e4 {[%emt 0:00:06]} Nc7 {[%emt 0:00:10]} 17. Qc2 {[%emt 0:00:12]} Ne6 {[%emt 0:00:01]} 18. Bc3 {[%emt 0:00:09]} Nd4 {[%emt 0:00:01]} 19. Qd3 {[%emt 0:00:05]} Qa8 {[%emt 0:00:07]} 20. Bxd4 {[%emt 0:00:04]} Bxd4 {[%emt 0:00:02]} 21. a3 {[%emt 0:00:03]} Rb8 {[%emt 0:00:03]} 22. Rab1 {[%emt 0:00:03]} Qc6 {[%emt 0:00:57]} 23. b4 {[%emt 0:00:12]} Raa8 {[%emt 0:00:15]} 24. Na5 {[%emt 0:00:14]} Qa4 {[%emt 0:00:08]} 25. Nc4 {[%emt 0:00:13]} Qc6 {[%emt 0:00:17]} 26. Rb3 {[%emt 0:00:16]} e5 {[%emt 0:00:10]} 27. Rc1 {[%emt 0:00:09]} d5 {[%emt 0:00:02]} 28. exd5 {[%emt 0:00:03]} Qxd5 {[%emt 0:00:02]} 29. Rbb1 {[%emt 0:00:37]} Bxf2+ {[%emt 0:00:03]} 30. Kxf2 {[%emt 0:00:03]} Qxd3 {[%emt 0:00:01]} 31. Nxe5 {[%emt 0:00:02]} Qd4+ {[%emt 0:00:01]} 32. Kg2 {[%emt 0:00:01]} Qxe5 {[%emt 0:00:01]} 33. Rxc5 {[%emt 0:00:01]} Qe4+ {[%emt 0:00:02]} 34. Kh3 {[%emt 0:00:01]} Qxb1 {[%emt 0:00:01]} 0-1

[Event "11th LCC Super Blitz 2019"]
[Site "London"]
[Date "2019.12.08"]
[Round "5.11"]
[White "Yeo, Klaus Lucas"]
[Black "Janula, Mariusz"]
[Result "1/2-1/2"]
[ECO "B22"]
[WhiteElo "1176"]
[BlackElo "1767"]
[Annotator "NA"]
[PlyCount "151"]
[EventDate "2019.12.08"]
[EventType "swiss"]
[EventCountry "ENG"]
[SourceTitle "playchess.com"]
[Source "ChessBase"]
[SourceQuality "1"]
[TimeControl "180+2"]

1. e4 {[%emt 0:00:00]} c5 {[%emt 0:00:00]} 2. Nf3 {[%emt 0:00:00]} d6 {[%emt 0:00:00]} 3. c3 {[%emt 0:00:00]} Nc6 {[%emt 0:00:01]} 4. d4 {[%emt 0:00:01]} cxd4 {[%emt 0:00:01]} 5. cxd4 {[%emt 0:00:01]} Nf6 {[%emt 0:00:03]} 6. Nc3 {[%emt 0:00:02]} g6 {[%emt 0:00:02]} 7. h3 {[%emt 0:00:01]} Bg7 {[%emt 0:00:00]} 8. Be3 {[%emt 0:00:01]} O-O {[%emt 0:00:04]} 9. Bc4 {[%emt 0:00:01]} Bd7 {[%emt 0:00:04]} 10. a3 {[%emt 0:00:01]} Rc8 {[%emt 0:00:03]} 11. Bd3 {[%emt 0:00:07]} a6 {[%emt 0:00:03]} 12. O-O {[%emt 0:00:02]} b5 {[%emt 0:00:00]} 13. Rc1 {[%emt 0:00:03]} Re8 {[%emt 0:00:06]} 14. b4 {[%emt 0:00:02]} h6 {[%emt 0:00:08]} 15. Ne2 {[%emt 0:00:15]} Kh7 {[%emt 0:00:07]} 16. Ng3 {[%emt 0:00:02]} e6 {[%emt 0:00:03]} 17. Qd2 {[%emt 0:00:09]} Ne7 {[%emt 0:00:26]} 18. Bb1 {[%emt 0:00:33]} Rc4 {[%emt 0:00:17]} 19. Ba2 {[%emt 0:00:15]} Rxc1 {[%emt 0:00:03]} 20. Rxc1 {[%emt 0:00:09]} Qa8 {[%emt 0:00:05]} 21. Bb1 {[%emt 0:00:04]} Rc8 {[%emt 0:00:02]} 22. Bd3 {[%emt 0:00:11]} Qb7 {[%emt 0:00:18]} 23. Rxc8 {[%emt 0:00:37]} Qxc8 {[%emt 0:00:00]} 24. e5 {[%emt 0:00:02]} dxe5 {[%emt 0:00:01]} 25. dxe5 {[%emt 0:00:01]} Nfd5 {[%emt 0:00:01]} 26. Bd4 {[%emt 0:00:12]} Qc7 {[%emt 0:00:04]} 27. Ne4 {[%emt 0:00:10]} Nf5 {[%emt 0:00:04]} 28. Nf6+ {[%emt 0:00:04]} Nxf6 {[%emt 0:00:11]} 29. Bxf5 {[%emt 0:00:07]} Nd5 {[%emt 0:00:05]} 30. Bd3 {[%emt 0:00:05]} Ne7 {[%emt 0:00:10]} 31. Qc3 {[%emt 0:00:08]} Qxc3 {[%emt 0:00:04]} 32. Bxc3 {[%emt 0:00:01]} Nd5 {[%emt 0:00:01]} 33. Bd4 {[%emt 0:00:03]} Bc6 {[%emt 0:00:10]} 34. Be4 {[%emt 0:00:10]} Ne7 {[%emt 0:00:04]} 35. Nd2 {[%emt 0:00:12]} Bxe4 {[%emt 0:00:06]} 36. Nxe4 {[%emt 0:00:02]} Nc6 {[%emt 0:00:00]} 37. Bb2 {[%emt 0:00:14]} Bxe5 {[%emt 0:00:03]} 38. Bxe5 {[%emt 0:00:02]} Nxe5 {[%emt 0:00:00]} 39. Nc5 {[%emt 0:00:02]} Nc4 {[%emt 0:00:14]} 40. Nxa6 {[%emt 0:00:03]} Nxa3 {[%emt 0:00:02]} 41. Nc7 {[%emt 0:00:01]} Kg7 {[%emt 0:00:01]} 42. Kf1 {[%emt 0:00:02]} Kf6 {[%emt 0:00:04]} 43. Ke2 {[%emt 0:00:05]} Ke5 {[%emt 0:00:01]} 44. Na6 {[%emt 0:00:01]} Kd5 {[%emt 0:00:04]} 45. Nc7+ {[%emt 0:00:02]} Kd6 {[%emt 0:00:03]} 46. Ne8+ {[%emt 0:00:03]} Ke7 {[%emt 0:00:02]} 47. Nc7 {[%emt 0:00:01]} f5 {[%emt 0:00:01]} 48. Ke3 {[%emt 0:00:01]} e5 {[%emt 0:00:01]} 49. Nd5+ {[%emt 0:00:01]} Kd6 {[%emt 0:00:02]} 50. Nb6 {[%emt 0:00:02]} g5 {[%emt 0:00:04]} 51. f3 {[%emt 0:00:01]} h5 {[%emt 0:00:03]} 52. g4 {[%emt 0:00:01]} hxg4 {[%emt 0:00:04]} 53. hxg4 {[%emt 0:00:01]} f4+ {[%emt 0:00:03]} 54. Ke4 {[%emt 0:00:01]} Nc2 {[%emt 0:00:06]} 55. Nd5 {[%emt 0:00:01]} Ne1 {[%emt 0:00:03]} 56. Nc3 {[%emt 0:00:03]} Nc2 {[%emt 0:00:03]} 57. Nxb5+ {[%emt 0:00:02]} Ke6 {[%emt 0:00:02]} 58. Nc7+ {[%emt 0:00:01]} Kd7 {[%emt 0:00:01]} 59. Nd5 {[%emt 0:00:02]} Ke6 {[%emt 0:00:02]} 60. Nc7+ {[%emt 0:00:01]} Kd6 {[%emt 0:00:02]} 61. Nd5 {[%emt 0:00:01]} Ke6 {[%emt 0:00:01]} 62. b5 {[%emt 0:00:00]} Nd4 {[%emt 0:00:02]} 63. b6 {[%emt 0:00:01]} Nc6 {[%emt 0:00:01]} 64. b7 {[%emt 0:00:04]} Nb8 {[%emt 0:00:09]} 65. Nc7+ {[%emt 0:00:01]} Kd6 {[%emt 0:00:03]} 66. Nb5+ {[%emt 0:00:01]} Ke6 {[%emt 0:00:05]} 67. Nc7+ Kd6 {[%emt 0:00:00]} 68. Nd5 {[%emt 0:00:05]} Ke6 {[%emt 0:00:00]} 69. Nc3 {[%emt 0:00:03]} Nc6 {[%emt 0:00:08]} 70. Na4 {[%emt 0:00:03]} Nb8 {[%emt 0:00:01]} 71. Nc5+ {[%emt 0:00:01]} Kd6 {[%emt 0:00:01]} 72. Nd3 {[%emt 0:00:01]} Ke6 {[%emt 0:00:00]} 73. Nxe5 {[%emt 0:00:02]} Kf6 {[%emt 0:00:08]} 74. Nd3 {[%emt 0:00:03]} Kg6 {[%emt 0:00:02]} 75. Nc5 {[%emt 0:00:05]} Kf6 {[%emt 0:00:01]} 76. Kd5 {[%emt 0:00:04]} 1/2-1/2

[Event "11th LCC Super Blitz 2019"]
[Site "London"]
[Date "2019.12.08"]
[Round "5.12"]
[White "Nunn, Petra"]
[Black "Phillips, David"]
[Result "1-0"]
[ECO "B01"]
[WhiteElo "1908"]
[BlackElo "1810"]
[Annotator "NA"]
[PlyCount "75"]
[EventDate "2019.12.08"]
[EventType "swiss"]
[EventCountry "ENG"]
[SourceTitle "playchess.com"]
[Source "ChessBase"]
[SourceQuality "1"]
[TimeControl "180+2"]

1. e4 {[%emt 0:00:00]} d5 {[%emt 0:00:00]} 2. exd5 {[%emt 0:00:02]} Qxd5 {[%emt 0:00:00]} 3. Nc3 {[%emt 0:00:01]} Qd8 {[%emt 0:00:01]} 4. d4 {[%emt 0:00:03]} Nf6 {[%emt 0:00:01]} 5. g3 {[%emt 0:00:10]} e6 {[%emt 0:00:02]} 6. Bg2 {[%emt 0:00:01]} c6 {[%emt 0:00:00]} 7. Nf3 {[%emt 0:00:02]} Be7 {[%emt 0:00:02]} 8. O-O {[%emt 0:00:01]} O-O {[%emt 0:00:01]} 9. Re1 {[%emt 0:00:08]} Nbd7 {[%emt 0:00:07]} 10. Ne2 {[%emt 0:00:27]} Qc7 {[%emt 0:00:11]} 11. c4 {[%emt 0:00:02]} Rd8 {[%emt 0:00:02]} 12. Bf4 {[%emt 0:00:11]} Bd6 {[%emt 0:00:01]} 13. Qc2 {[%emt 0:00:32]} Nf8 {[%emt 0:00:07]} 14. Rad1 {[%emt 0:00:05]} Bxf4 {[%emt 0:00:05]} 15. Nxf4 {[%emt 0:00:01]} Bd7 {[%emt 0:00:10]} 16. Ne5 {[%emt 0:00:06]} Be8 {[%emt 0:00:04]} 17. h4 {[%emt 0:00:05]} Rac8 {[%emt 0:00:08]} 18. h5 {[%emt 0:00:10]} b6 {[%emt 0:00:35]} 19. Qe2 {[%emt 0:00:20]} c5 {[%emt 0:00:08]} 20. d5 {[%emt 0:00:10]} exd5 {[%emt 0:00:05]} 21. Nxd5 {[%emt 0:00:01]} Nxd5 {[%emt 0:00:05]} 22. Bxd5 {[%emt 0:00:04]} Kh8 {[%emt 0:00:37]} 23. Qg4 {[%emt 0:00:25]} f6 {[%emt 0:00:07]} 24. Nf3 {[%emt 0:00:18]} Bc6 {[%emt 0:00:32]} 25. Bxc6 {[%emt 0:00:09]} Qxc6 {[%emt 0:00:05]} 26. Nh4 {[%emt 0:00:07]} Rd4 {[%emt 0:00:23]} 27. Rxd4 {[%emt 0:00:04]} cxd4 {[%emt 0:00:02]} 28. Qxd4 {[%emt 0:00:01]} Qxc4 {[%emt 0:00:01]} 29. Qxc4 {[%emt 0:00:02]} Rxc4 {[%emt 0:00:01]} 30. Re8 {[%emt 0:00:01]} Kg8 {[%emt 0:00:01]} 31. Nf5 {[%emt 0:00:02]} Rc1+ {[%emt 0:00:02]} 32. Kg2 {[%emt 0:00:01]} g6 {[%emt 0:00:07]} 33. hxg6 {[%emt 0:00:03]} hxg6 {[%emt 0:00:03]} 34. Nd6 {[%emt 0:00:00]} Rc6 {[%emt 0:00:05]} 35. Ne4 {[%emt 0:00:03]} Kf7 {[%emt 0:00:02]} 36. Ra8 {[%emt 0:00:01]} Rc7 {[%emt 0:00:01]} 37. Nd6+ {[%emt 0:00:02]} Kg7 {[%emt 0:00:02]} 38. Ne8+ {[%emt 0:00:01]} 1-0

[Event "11th LCC Super Blitz 2019"]
[Site "London"]
[Date "2019.12.08"]
[Round "5.12"]
[White "Brass, Ezra"]
[Black "Sandhu, Manvith"]
[Result "1-0"]
[ECO "B08"]
[WhiteElo "1628"]
[BlackElo "1673"]
[Annotator "NA"]
[PlyCount "37"]
[EventDate "2019.12.08"]
[EventType "swiss"]
[EventCountry "ENG"]
[SourceTitle "playchess.com"]
[Source "ChessBase"]
[SourceQuality "1"]
[TimeControl "180+2"]

1. e4 {[%emt 0:00:00]} Nc6 {[%emt 0:00:00]} 2. Nf3 {[%emt 0:00:01]} d6 {[%emt 0:00:00]} 3. d4 {[%emt 0:00:01]} Nf6 {[%emt 0:00:01]} 4. Nc3 {[%emt 0:00:04]} g6 {[%emt 0:00:01]} 5. Bc4 {[%emt 0:00:02]} Bg7 {[%emt 0:00:01]} 6. O-O {[%emt 0:00:05]} O-O {[%emt 0:00:02]} 7. h3 {[%emt 0:00:02]} a6 {[%emt 0:00:02]} 8. Be3 {[%emt 0:00:02]} b5 {[%emt 0:00:01]} 9. Bd3 {[%emt 0:00:04]} Bb7 {[%emt 0:00:02]} 10. d5 {[%emt 0:00:11]} Nb8 {[%emt 0:00:03]} 11. a3 {[%emt 0:00:06]} Nbd7 {[%emt 0:00:02]} 12. Qd2 {[%emt 0:00:03]} Re8 {[%emt 0:00:22]} 13. Nd4 {[%emt 0:00:09]} Nc5 {[%emt 0:00:16]} 14. b4 {[%emt 0:00:06]} Ncd7 {[%emt 0:00:02]} 15. Nb3 {[%emt 0:00:03]} Ne5 {[%emt 0:00:04]} 16. Na5 {[%emt 0:00:05]} Bc8 {[%emt 0:00:04]} 17. f4 {[%emt 0:00:09]} Nxd3 {[%emt 0:00:03]} 18. cxd3 {[%emt 0:00:06]} Qd7 {[%emt 0:00:12]} 19. d4 {[%emt 0:00:05]} 1-0

[Event "11th LCC Super Blitz 2019"]
[Site "London"]
[Date "2019.12.08"]
[Round "5.13"]
[White "Fisher, Neal"]
[Black "Zhao, Haolin"]
[Result "0-1"]
[ECO "A47"]
[WhiteElo "1522"]
[BlackElo "1725"]
[Annotator "NA"]
[PlyCount "160"]
[EventDate "2019.12.08"]
[EventType "swiss"]
[EventCountry "ENG"]
[SourceTitle "playchess.com"]
[Source "ChessBase"]
[SourceQuality "1"]
[TimeControl "180+2"]

1. d4 {[%emt 0:00:00]} Nf6 {[%emt 0:00:00]} 2. Bf4 {[%emt 0:00:01]} e6 {[%emt 0:00:01]} 3. e3 {[%emt 0:00:02]} c5 {[%emt 0:00:01]} 4. Nf3 {[%emt 0:00:02]} b6 {[%emt 0:00:02]} 5. c3 {[%emt 0:00:01]} Bb7 {[%emt 0:00:01]} 6. Nbd2 {[%emt 0:00:02]} cxd4 {[%emt 0:00:02]} 7. exd4 {[%emt 0:00:02]} Be7 {[%emt 0:00:04]} 8. Bd3 {[%emt 0:00:01]} d6 {[%emt 0:00:01]} 9. Qc2 {[%emt 0:00:04]} Nbd7 {[%emt 0:00:02]} 10. O-O-O {[%emt 0:00:02]} Qc7 {[%emt 0:00:16]} 11. Kb1 {[%emt 0:00:05]} O-O-O {[%emt 0:00:02]} 12. Nc4 {[%emt 0:00:16]} Nh5 {[%emt 0:00:07]} 13. Bg3 {[%emt 0:00:02]} Nxg3 {[%emt 0:00:03]} 14. hxg3 {[%emt 0:00:01]} h6 {[%emt 0:00:03]} 15. Na3 {[%emt 0:00:30]} Kb8 {[%emt 0:00:18]} 16. Nb5 {[%emt 0:00:02]} Qc6 {[%emt 0:00:02]} 17. a4 {[%emt 0:00:14]} Nf6 {[%emt 0:00:05]} 18. Rhe1 {[%emt 0:00:10]} Nd5 {[%emt 0:00:06]} 19. Be4 {[%emt 0:00:10]} Qd7 {[%emt 0:00:11]} 20. c4 {[%emt 0:00:06]} Nc7 {[%emt 0:00:06]} 21. Bxb7 {[%emt 0:00:04]} Kxb7 {[%emt 0:00:02]} 22. d5 {[%emt 0:00:06]} Nxb5 {[%emt 0:00:04]} 23. axb5 {[%emt 0:00:02]} e5 {[%emt 0:00:07]} 24. Qa4 {[%emt 0:00:01]} Ra8 {[%emt 0:00:07]} 25. Qa6+ {[%emt 0:00:01]} Kb8 {[%emt 0:00:02]} 26. Re4 {[%emt 0:00:33]} Qc8 {[%emt 0:00:04]} 27. Qxc8+ {[%emt 0:00:04]} Kxc8 {[%emt 0:00:07]} 28. b4 {[%emt 0:00:07]} f6 {[%emt 0:00:14]} 29. Rd2 {[%emt 0:00:02]} Kb7 {[%emt 0:00:02]} 30. Ra2 {[%emt 0:00:01]} Rhc8 {[%emt 0:00:04]} 31. Re3 {[%emt 0:00:08]} a6 {[%emt 0:00:02]} 32. bxa6+ {[%emt 0:00:06]} Rxa6 {[%emt 0:00:02]} 33. Rxa6 {[%emt 0:00:01]} Kxa6 {[%emt 0:00:01]} 34. Ra3+ {[%emt 0:00:05]} Kb7 {[%emt 0:00:01]} 35. Nd2 {[%emt 0:00:04]} f5 {[%emt 0:00:05]} 36. f4 {[%emt 0:00:09]} exf4 {[%emt 0:00:02]} 37. gxf4 {[%emt 0:00:01]} g5 {[%emt 0:00:03]} 38. g3 {[%emt 0:00:02]} gxf4 {[%emt 0:00:03]} 39. gxf4 {[%emt 0:00:01]} Rg8 {[%emt 0:00:02]} 40. Rh3 {[%emt 0:00:11]} Rg6 {[%emt 0:00:08]} 41. Kc2 {[%emt 0:00:02]} Kc7 {[%emt 0:00:06]} 42. Nb3 {[%emt 0:00:03]} Kd7 {[%emt 0:00:02]} 43. Nd4 {[%emt 0:00:01]} Rg2+ {[%emt 0:00:04]} 44. Kd3 {[%emt 0:00:01]} Rg4 {[%emt 0:00:16]} 45. Nxf5 {[%emt 0:00:03]} Rxf4 {[%emt 0:00:03]} 46. Nxe7 {[%emt 0:00:01]} Kxe7 {[%emt 0:00:02]} 47. Rxh6 {[%emt 0:00:01]} Rf3+ {[%emt 0:00:02]} 48. Kd4 {[%emt 0:00:02]} Rf1 {[%emt 0:00:04]} 49. c5 {[%emt 0:00:04]} Rd1+ {[%emt 0:00:02]} 50. Kc4 {[%emt 0:00:01]} bxc5 {[%emt 0:00:03]} 51. bxc5 {[%emt 0:00:02]} Rc1+ {[%emt 0:00:01]} 52. Kd4 {[%emt 0:00:02]} Rxc5 {[%emt 0:00:02]} 53. Rh7+ {[%emt 0:00:03]} Kd8 {[%emt 0:00:02]} 54. Ra7 {[%emt 0:00:04]} Rc7 {[%emt 0:00:05]} 55. Ra8+ {[%emt 0:00:03]} Kd7 {[%emt 0:00:02]} 56. Rh8 {[%emt 0:00:05]} Rc1 {[%emt 0:00:01]} 57. Rh7+ {[%emt 0:00:02]} Kd8 {[%emt 0:00:01]} 58. Ke4 {[%emt 0:00:01]} Re1+ {[%emt 0:00:02]} 59. Kf5 {[%emt 0:00:02]} Re5+ {[%emt 0:00:02]} 60. Kf6 {[%emt 0:00:03]} Rxd5 {[%emt 0:00:01]} 61. Ke6 {[%emt 0:00:01]} Rd1 {[%emt 0:00:03]} 62. Rh8+ {[%emt 0:00:01]} Kc7 {[%emt 0:00:02]} 63. Rh7+ {[%emt 0:00:02]} Kc6 {[%emt 0:00:01]} 64. Ra7 {[%emt 0:00:03]} Re1+ {[%emt 0:00:01]} 65. Kf5 {[%emt 0:00:01]} d5 {[%emt 0:00:04]} 66. Ra2 {[%emt 0:00:03]} Kc5 {[%emt 0:00:05]} 67. Rc2+ {[%emt 0:00:01]} Kd4 {[%emt 0:00:02]} 68. Rd2+ {[%emt 0:00:01]} Kc4 {[%emt 0:00:01]} 69. Kf4 {[%emt 0:00:03]} d4 {[%emt 0:00:02]} 70. Kf3 {[%emt 0:00:01]} Re8 {[%emt 0:00:03]} 71. Ra2 {[%emt 0:00:18]} Kb3 {[%emt 0:00:15]} 72. Rd2 {[%emt 0:00:02]} Kc3 {[%emt 0:00:01]} 73. Rd1 {[%emt 0:00:04]} d3 {[%emt 0:00:01]} 74. Kf2 {[%emt 0:00:01]} d2 {[%emt 0:00:16]} 75. Kf1 {[%emt 0:00:05]} Kc2 {[%emt 0:00:04]} 76. Ra1 {[%emt 0:00:00]} d1=Q+ {[%emt 0:00:03]} 77. Rxd1 {[%emt 0:00:02]} Kxd1 {[%emt 0:00:01]} 78. Kf2 {[%emt 0:00:01]} Re2+ {[%emt 0:00:04]} 79. Kf3 {[%emt 0:00:01]} Kd2 {[%emt 0:00:01]} 80. Kf4 {[%emt 0:00:01]} Re3 {[%emt 0:00:01] Ke4} 0-1